[Event "NJSK 2022 Meisjes A&B"]
[Site "Almelo, Netherlands"]
[Date "2022.05.04"]
[Round "4.4"]
[White "Van Essen, Marieke"]
[Black "Mensing, Luana"]
[Result "1-0"]
[TimeControl "90min/40moves + 30min + 30sec/move"]
[WhiteElo "1728"]
[BlackElo "1604"]

1. e4 {[%clk 01:30:59]} {[%emt 00:00:01]} c5 {[%clk 01:30:52]} {[%emt
00:00:08]} 2. Nf3 {[%clk 01:31:23]} {[%emt 00:00:06]} d6 {[%clk 01:31:15]}
{[%emt 00:00:07]} 3. d4 {[%clk 01:31:47]} {[%emt 00:00:05]} cxd4 {[%clk
01:31:37]} {[%emt 00:00:09]} 4. Nxd4 {[%clk 01:32:14]} {[%emt 00:00:04]} Nf6
{[%clk 01:31:58]} {[%emt 00:00:08]} 5. Nc3 {[%clk 01:32:39]} {[%emt 00:00:05]}
a6 {[%clk 01:32:19]} {[%emt 00:00:09]} 6. a4 {[%clk 01:32:51]} {[%emt
00:00:18]} g6 {[%clk 01:31:54]} {[%emt 00:00:55]} 7. Bc4 {[%clk 01:32:54]}
{[%emt 00:00:27]} e6 {[%clk 01:31:39]} {[%emt 00:00:45]} 8. O-O {[%clk
01:32:20]} {[%emt 00:01:04]} Bg7 {[%clk 01:24:23]} {[%emt 00:07:46]} 9. Kh1
{[%clk 01:22:37]} {[%emt 00:10:13]} Nc6 {[%clk 01:19:21]} {[%emt 00:05:33]} 10.
f4 {[%clk 01:15:28]} {[%emt 00:07:38]} Nxd4 {[%clk 01:13:23]} {[%emt 00:06:28]}
11. Qxd4 {[%clk 01:15:17]} {[%emt 00:00:41]} O-O {[%clk 01:13:29]} {[%emt
00:00:24]} 12. Qf2 {[%clk 01:06:10]} {[%emt 00:09:36]} Qc7 {[%clk 01:00:13]}
{[%emt 00:13:48]} 13. Bb3 {[%clk 01:04:07]} {[%emt 00:02:33]} Bd7 {[%clk
00:54:03]} {[%emt 00:06:40]} 14. Qh4 {[%clk 00:57:21]} {[%emt 00:07:14]} b5
{[%clk 00:31:55]} {[%emt 00:22:41]} 15. e5 {[%clk 00:37:24]} {[%emt 00:20:27]}
dxe5 {[%clk 00:30:30]} {[%emt 00:01:55]} 16. fxe5 {[%clk 00:37:45]} {[%emt
00:00:09]} Qxe5 {[%clk 00:30:48]} {[%emt 00:00:12]} 17. Bg5 {[%clk 00:36:36]}
{[%emt 00:01:39]} Nh5 {[%clk 00:27:13]} {[%emt 00:04:05]} 18. Rae1 {[%clk
00:32:34]} {[%emt 00:04:33]} Qc7 {[%clk 00:19:05]} {[%emt 00:08:38]} 19. Be7
{[%clk 00:24:51]} {[%emt 00:08:13]} Rfe8 {[%clk 00:18:56]} {[%emt 00:00:39]} 20.
axb5 {[%clk 00:19:50]} {[%emt 00:05:30]} Bxc3 {[%clk 00:18:36]} {[%emt
00:00:51]} 21. bxc3 {[%clk 00:18:29]} {[%emt 00:01:51]} Bxb5 {[%clk 00:18:52]}
{[%emt 00:00:14]} 22. Rxf7 {[%clk 00:14:39]} {[%emt 00:04:20]} Ng7 {[%clk
00:01:37]} {[%emt 00:17:46]} 23. Rxg7+ {[%clk 00:14:05]} {[%emt 00:01:03]} Kxg7
{[%clk 00:01:57]} {[%emt 00:00:09]} 24. Qf6+ {[%clk 00:13:28]} {[%emt
00:01:08]} Kh6 {[%clk 00:01:53]} {[%emt 00:00:34]} 25. Re3 {[%clk 00:12:50]}
{[%emt 00:01:07]} Be2 {[%clk 00:01:45]} {[%emt 00:00:39]} 26. Rh3+ {[%clk
00:13:01]} {[%emt 00:00:18]} Bh5 {[%clk 00:02:11]} {[%emt 00:00:04]} 27. Rxh5+
{[%clk 00:13:25]} {[%emt 00:00:07]} Kxh5 {[%clk 00:02:26]} {[%emt 00:00:15]} 28.
Qg5# {[%clk 00:13:50]} {[%emt 00:00:04]} 1-0

[Event "NJSK 2022 Meisjes A&B"]
[Site "Almelo, Netherlands"]
[Date "2022.05.04"]
[Round "4.5"]
[White "Ganeshram, Nirupa"]
[Black "Jonkman, Amelia"]
[Result "1-0"]
[TimeControl "90min/40moves + 30min + 30sec/move"]
[WhiteElo "1546"]
[BlackElo "1552"]

1. e4 {[%clk 01:30:58]} {[%emt 00:00:02]} e6 {[%clk 01:30:55]} {[%emt
00:00:05]} 2. d4 {[%clk 01:31:20]} {[%emt 00:00:07]} d5 {[%clk 01:31:20]}
{[%emt 00:00:06]} 3. Nc3 {[%clk 01:31:39]} {[%emt 00:00:11]} Nf6 {[%clk
01:31:41]} {[%emt 00:00:09]} 4. e5 {[%clk 01:31:55]} {[%emt 00:00:14]} Nfd7
{[%clk 01:32:05]} {[%emt 00:00:07]} 5. f4 {[%clk 01:32:09]} {[%emt 00:00:15]}
c5 {[%clk 01:32:05]} {[%emt 00:00:31]} 6. Nf3 {[%clk 01:31:53]} {[%emt
00:00:45]} Nc6 {[%clk 01:31:35]} {[%emt 00:01:00]} 7. Be3 {[%clk 01:31:39]}
{[%emt 00:00:44]} a6 {[%clk 01:30:32]} {[%emt 00:01:34]} 8. Qd2 {[%clk
01:30:54]} {[%emt 00:01:14]} Be7 {[%clk 01:27:09]} {[%emt 00:03:54]} 9. Be2
{[%clk 01:23:43]} {[%emt 00:07:40]} b5 {[%clk 01:26:50]} {[%emt 00:00:49]} 10.
a3 {[%clk 01:22:08]} {[%emt 00:02:05]} Qc7 {[%clk 01:18:35]} {[%emt 00:08:45]}
11. O-O {[%clk 01:20:50]} {[%emt 00:01:48]} cxd4 {[%clk 01:17:08]} {[%emt
00:01:57]} 12. Nxd4 {[%clk 01:20:34]} {[%emt 00:00:46]} Nxd4 {[%clk 01:16:29]}
{[%emt 00:01:09]} 13. Bxd4 {[%clk 01:19:56]} {[%emt 00:01:08]} Bc5 {[%clk
01:15:42]} {[%emt 00:01:18]} 14. Kh1 {[%clk 01:15:03]} {[%emt 00:05:22]} Bxd4
{[%clk 01:13:33]} {[%emt 00:02:39]} 15. Qxd4 {[%emt 00:00:45]} Qc5 {[%clk
01:13:21]} {[%emt 00:00:40]} 16. Qxc5 {[%clk 01:08:39]} {[%emt 00:06:42]} Nxc5
{[%clk 01:13:41]} {[%emt 00:00:10]} 17. Bf3 {[%clk 01:03:40]} {[%emt 00:05:27]}
Bb7 {[%clk 01:10:57]} {[%emt 00:03:15]} 18. Ne2 {[%clk 00:54:47]} {[%emt
00:09:23]} Na4 {[%clk 01:05:22]} {[%emt 00:06:06]} 19. Rab1 {[%clk 00:46:26]}
{[%emt 00:08:50]} Rc8 {[%clk 01:01:24]} {[%emt 00:04:28]} 20. Nd4 {[%clk
00:43:22]} {[%emt 00:03:34]} Kd7 {[%clk 00:51:33]} {[%emt 00:10:21]} 21. c3
{[%clk 00:38:17]} {[%emt 00:05:35]} Nb6 {[%clk 00:46:50]} {[%emt 00:05:13]} 22.
Rbd1 {[%clk 00:32:53]} {[%emt 00:05:54]} Nc4 {[%clk 00:42:32]} {[%emt
00:04:49]} 23. Rf2 {[%clk 00:30:25]} {[%emt 00:02:57]} Na5 {[%clk 00:41:32]}
{[%emt 00:01:31]} 24. f5 {[%clk 00:18:33]} {[%emt 00:12:21]} Nc6 {[%clk
00:37:14]} {[%emt 00:04:47]} 25. fxe6+ {[%clk 00:15:11]} {[%emt 00:03:52]} fxe6
{[%clk 00:36:34]} {[%emt 00:01:10]} 26. Bg4 {[%clk 00:14:54]} {[%emt 00:00:47]}
Nxd4 {[%clk 00:36:24]} {[%emt 00:00:40]} 27. Rf7+ {[%clk 00:14:33]} {[%emt
00:00:51]} Kc6 {[%clk 00:36:16]} {[%emt 00:00:39]} 28. cxd4 {[%clk 00:13:46]}
{[%emt 00:01:16]} Kb6 {[%clk 00:27:58]} {[%emt 00:08:48]} 29. Bxe6 {[%clk
00:10:30]} {[%emt 00:03:46]} Rc2 {[%clk 00:23:23]} {[%emt 00:05:05]} 30. b3
{[%clk 00:09:48]} {[%emt 00:01:13]} Rc3 {[%clk 00:12:29]} {[%emt 00:11:23]} 31.
Rxg7 {[%clk 00:09:10]} {[%emt 00:01:09]} Rxb3 {[%clk 00:10:49]} {[%emt
00:02:10]} 32. Rxb7+ {[%clk 00:08:52]} {[%emt 00:00:47]} Kxb7 {[%clk 00:09:25]}
{[%emt 00:01:55]} 33. Bxd5+ {[%clk 00:09:10]} {[%emt 00:00:11]} Kc7 {[%clk
00:05:54]} {[%emt 00:04:01]} 34. Bxb3 {[%clk 00:09:27]} {[%emt 00:00:13]} Kd7
{[%clk 00:05:09]} {[%emt 00:01:16]} 35. d5 {[%clk 00:09:38]} {[%emt 00:00:19]}
Rc8 {[%clk 00:04:29]} {[%emt 00:01:10]} 36. e6+ {[%clk 00:09:25]} {[%emt
00:00:43]} Kd6 {[%clk 00:03:29]} {[%emt 00:01:30]} 37. Re1 {[%clk 00:09:42]}
{[%emt 00:00:12]} Ke7 {[%clk 00:03:36]} {[%emt 00:00:24]} 38. d6+ {[%clk
00:10:02]} {[%emt 00:00:09]} Kxd6 {[%clk 00:03:41]} {[%emt 00:00:25]} 39. e7
{[%clk 00:10:26]} {[%emt 00:00:06]} Re8 {[%clk 00:03:54]} {[%emt 00:00:17]} 40.
Re6+ {[%clk 00:10:09]} {[%emt 00:00:47]} Kd7 {[%clk 00:04:23]} {[%emt
00:00:34]} 41. Rxa6 {[%clk 00:10:53]} {[%emt 00:00:14]} Rxe7 {[%clk 00:04:38]}
{[%emt 00:00:14]} 42. Ra7+ {[%clk 00:11:17]} {[%emt 00:00:06]} Kd6 {[%clk
00:04:43]} {[%emt 00:00:26]} 43. Rxe7 {[%clk 00:11:40]} {[%emt 00:00:07]} Kxe7
{[%clk 00:05:06]} {[%emt 00:00:07]} 44. a4 {[%clk 00:12:05]} {[%emt 00:00:05]}
bxa4 {[%clk 00:05:27]} {[%emt 00:00:09]} 45. Bxa4 {[%clk 00:12:31]} {[%emt
00:00:04]} Kf6 {[%clk 00:05:47]} {[%emt 00:00:10]} 46. h4 {[%clk 00:12:47]}
{[%emt 00:00:13]} h6 {[%clk 00:05:35]} {[%emt 00:00:42]} 47. Kh2 {[%clk
00:13:07]} {[%emt 00:00:11]} Ke5 {[%clk 00:05:25]} {[%emt 00:00:40]} 48. Kg3
{[%clk 00:13:23]} {[%emt 00:00:13]} Kf5 {[%clk 00:05:34]} {[%emt 00:00:21]} 49.
Be8 {[%clk 00:13:35]} {[%emt 00:00:19]} Kf6 {[%clk 00:05:42]} {[%emt 00:00:21]}
50. Kg4 {[%clk 00:13:57]} {[%emt 00:00:07]} Kg7 {[%clk 00:06:00]} {[%emt
00:00:13]} 51. Kh5 {[%clk 00:14:19]} {[%emt 00:00:09]} Kh7 {[%clk 00:06:18]}
{[%emt 00:00:12]} 52. Bg6+ {[%clk 00:14:39]} {[%emt 00:00:09]} Kg7 {[%clk
00:06:39]} {[%emt 00:00:10]} 53. g4 {[%clk 00:15:03]} {[%emt 00:00:05]} Kg8
{[%clk 00:06:42]} {[%emt 00:00:27]} 54. Kxh6 {[%clk 00:15:29]} {[%emt
00:00:04]} Kh8 {[%clk 00:07:05]} {[%emt 00:00:08]} 55. Be4 {[%clk 00:15:36]}
{[%emt 00:00:23]} Kg8 {[%clk 00:07:11]} {[%emt 00:00:24]} 56. Kg6 {[%clk
00:15:56]} {[%emt 00:00:10]} Kh8 {[%clk 00:07:38]} {[%emt 00:00:03]} 57. Bc6
{[%clk 00:16:09]} {[%emt 00:00:18]} Kg8 {[%clk 00:07:57]} {[%emt 00:00:11]} 58.
g5 {[%clk 00:16:34]} {[%emt 00:00:04]} Kh8 {[%clk 00:08:04]} {[%emt 00:00:23]}
59. Kf7 {[%clk 00:16:56]} {[%emt 00:00:08]} Kh7 {[%clk 00:08:11]} {[%emt
00:00:22]} 60. g6 {[%clk 00:17:21]} {[%emt 00:00:05]} 1-0

[Event "NJSK 2022 Meisjes A&B"]
[Site "Almelo, Netherlands"]
[Date "2022.05.04"]
[Round "4.6"]
[White "De Zoeten, Cato"]
[Black "Bogouslavskii, Veronique"]
[Result "1-0"]
[TimeControl "90min/40moves + 30min + 30sec/move"]
[WhiteElo "1915"]
[BlackElo "1618"]

1. e4 {[%clk 01:30:57]} {[%emt 00:00:02]} d5 {[%clk 01:30:56]} {[%emt
00:00:04]} 2. exd5 {[%clk 01:28:23]} {[%emt 00:03:04]} Qxd5 {[%clk 01:31:18]}
{[%emt 00:00:08]} 3. Nc3 {[%clk 01:28:49]} {[%emt 00:00:04]} Qa5 {[%clk
01:31:41]} {[%emt 00:00:07]} 4. d4 {[%clk 01:22:58]} {[%emt 00:06:21]} Nf6
{[%clk 01:31:51]} {[%emt 00:00:21]} 5. Bc4 {[%clk 01:21:31]} {[%emt 00:01:57]}
Bf5 {[%clk 01:30:22]} {[%emt 00:01:59]} 6. Nf3 {[%clk 01:20:47]} {[%emt
00:01:13]} e6 {[%clk 01:29:35]} {[%emt 00:01:18]} 7. Bd2 {[%clk 01:18:05]}
{[%emt 00:03:12]} c6 {[%clk 01:28:32]} {[%emt 00:01:33]} 8. O-O {[%clk
01:17:30]} {[%emt 00:01:04]} Nbd7 {[%clk 01:26:41]} {[%emt 00:02:22]} 9. Re1
{[%clk 01:08:37]} {[%emt 00:09:23]} Be7 {[%clk 01:23:15]} {[%emt 00:03:56]} 10.
Nd5 {[%clk 01:04:35]} {[%emt 00:04:32]} Qd8 {[%clk 01:22:29]} {[%emt 00:01:15]}
11. Nxe7 {[%clk 01:04:54]} {[%emt 00:00:11]} Qxe7 {[%clk 01:22:32]} {[%emt
00:00:27]} 12. a3 {[%clk 00:53:55]} {[%emt 00:11:29]} a5 {[%clk 01:12:13]}
{[%emt 00:10:49]} 13. h3 {[%clk 00:51:10]} {[%emt 00:03:14]} h6 {[%clk
00:58:40]} {[%emt 00:14:03]} 14. Bf4 {[%clk 00:46:08]} {[%emt 00:05:33]} O-O
{[%clk 00:51:03]} {[%emt 00:08:07]} 15. Bf1 {[%clk 00:39:59]} {[%emt 00:06:39]}
Nd5 {[%clk 00:38:08]} {[%emt 00:13:25]} 16. Bh2 {[%clk 00:39:28]} {[%emt
00:01:01]} Qf6 {[%clk 00:37:17]} {[%emt 00:01:20]} 17. c4 {[%clk 00:34:12]}
{[%emt 00:05:46]} N5b6 {[%clk 00:36:27]} {[%emt 00:01:20]} 18. Qb3 {[%clk
00:31:49]} {[%emt 00:02:53]} a4 {[%clk 00:32:09]} {[%emt 00:04:48]} 19. Qe3
{[%clk 00:31:20]} {[%emt 00:00:59]} Rfe8 {[%clk 00:30:28]} {[%emt 00:02:11]} 20.
Bd3 {[%clk 00:23:32]} {[%emt 00:08:18]} Rac8 {[%clk 00:27:58]} {[%emt
00:03:01]} 21. Rad1 {[%clk 00:22:02]} {[%emt 00:02:00]} Red8 {[%clk 00:18:46]}
{[%emt 00:09:41]} 22. Bxf5 {[%clk 00:17:08]} {[%emt 00:05:24]} Qxf5 {[%clk
00:18:35]} {[%emt 00:00:41]} 23. Qc3 {[%clk 00:15:36]} {[%emt 00:02:02]} c5
{[%clk 00:16:43]} {[%emt 00:02:22]} 24. dxc5 {[%clk 00:14:51]} {[%emt
00:01:15]} Rxc5 {[%emt 00:06:47]} 25. Re5 {[%clk 00:09:34]} Rxc4 {[%clk
00:07:10]} {[%emt 00:09:33]} 26. Qxc4 {[%clk 00:07:50]} {[%emt 00:02:14]} Nxc4
{[%clk 00:06:31]} {[%emt 00:01:08]} 27. Rxf5 {[%clk 00:08:16]} {[%emt
00:00:05]} exf5 {[%clk 00:06:08]} {[%emt 00:00:52]} 28. Bc7 {[%clk 00:08:30]}
{[%emt 00:00:16]} Nxb2 {[%clk 00:06:23]} {[%emt 00:00:16]} 29. Rd2 {[%clk
00:08:23]} {[%emt 00:00:37]} Nc4 {[%clk 00:06:39]} {[%emt 00:00:12]} 30. Bxd8
{[%clk 00:08:41]} {[%emt 00:00:14]} Nxd2 {[%clk 00:06:57]} {[%emt 00:00:12]} 31.
Nxd2 {[%clk 00:09:07]} {[%emt 00:00:03]} f6 {[%clk 00:06:50]} {[%emt 00:00:37]}
32. Nc4 {[%clk 00:08:56]} {[%emt 00:00:41]} Kf8 {[%clk 00:06:21]} {[%emt
00:00:59]} 33. Nd6 {[%clk 00:08:14]} {[%emt 00:01:12]} b6 {[%clk 00:06:18]}
{[%emt 00:00:33]} 34. Nxf5 {[%clk 00:08:02]} {[%emt 00:00:43]} Kf7 {[%clk
00:05:10]} {[%emt 00:01:38]} 35. Nd4 {[%clk 00:07:28]} {[%emt 00:01:03]} Ke8
{[%clk 00:04:58]} {[%emt 00:00:42]} 36. Bc7 {[%clk 00:07:46]} {[%emt 00:00:12]}
Ke7 {[%clk 00:04:48]} {[%emt 00:00:40]} 37. Nb5 {[%clk 00:08:02]} {[%emt
00:00:14]} Nc5 {[%clk 00:02:55]} {[%emt 00:02:24]} 38. Bxb6 {[%clk 00:08:12]}
{[%emt 00:00:19]} Nd3 {[%clk 00:03:06]} {[%emt 00:00:19]} 39. Nc3 {[%clk
00:08:06]} {[%emt 00:00:36]} Nb2 {[%clk 00:03:20]} {[%emt 00:00:16]} 40. Be3
{[%clk 00:08:16]} {[%emt 00:00:20]} 1-0

[Event "NJSK 2022 Meisjes A&B"]
[Site "Almelo, Netherlands"]
[Date "2022.05.04"]
[Round "4.7"]
[White "Wortman, Manixia"]
[Black "Tangarife Ramirez, Katja"]
[Result "1/2-1/2"]
[TimeControl "90min/40moves + 30min + 30sec/move"]
[WhiteElo "1432"]
[BlackElo "1623"]

1. e4 {[%clk 01:30:57]} {[%emt 00:00:02]} g6 {[%clk 01:30:50]} {[%emt
00:00:10]} 2. d4 {[%clk 01:31:23]} {[%emt 00:00:05]} Bg7 {[%clk 01:31:10]}
{[%emt 00:00:10]} 3. e5 {[%clk 01:31:40]} {[%emt 00:00:12]} d6 {[%clk
01:30:39]} {[%emt 00:01:02]} 4. f4 {[%clk 01:31:02]} {[%emt 00:01:08]} dxe5
{[%clk 01:28:47]} {[%emt 00:02:22]} 5. fxe5 {[%clk 01:31:07]} {[%emt 00:00:25]}
c5 {[%clk 01:27:39]} {[%emt 00:01:38]} 6. c3 {[%clk 01:28:34]} {[%emt
00:03:03]} Nc6 {[%clk 01:24:25]} {[%emt 00:03:43]} 7. Nf3 {[%clk 01:26:38]}
{[%emt 00:02:27]} Bg4 {[%clk 01:22:41]} {[%emt 00:02:14]} 8. Bb5 {[%clk
01:24:05]} {[%emt 00:03:03]} Qb6 {[%clk 01:20:40]} {[%emt 00:02:31]} 9. Bxc6+
{[%clk 01:18:00]} {[%emt 00:06:35]} Qxc6 {[%clk 01:20:28]} {[%emt 00:00:41]} 10.
h3 {[%clk 01:17:40]} {[%emt 00:00:51]} Bxf3 {[%clk 01:17:07]} {[%emt 00:03:51]}
11. Qxf3 {[%clk 01:18:01]} {[%emt 00:00:10]} Qxf3 {[%clk 01:15:11]} {[%emt
00:02:25]} 12. gxf3 {[%clk 01:18:25]} {[%emt 00:00:06]} Rc8 {[%clk 01:14:07]}
{[%emt 00:01:34]} 13. Be3 {[%clk 01:12:43]} {[%emt 00:06:11]} e6 {[%clk
01:12:45]} {[%emt 00:01:51]} 14. Nd2 {[%clk 01:12:12]} {[%emt 00:01:03]} Ne7
{[%clk 01:11:00]} {[%emt 00:02:14]} 15. Ne4 {[%clk 01:09:51]} {[%emt 00:02:51]}
Nf5 {[%clk 01:09:10]} {[%emt 00:02:21]} 16. Bg5 {[%clk 01:07:37]} {[%emt
00:02:43]} cxd4 {[%clk 01:04:45]} {[%emt 00:04:56]} 17. cxd4 {[%clk 01:01:20]}
{[%emt 00:06:46]} O-O {[%clk 01:01:16]} {[%emt 00:03:59]} 18. Rd1 {[%clk
00:55:57]} {[%emt 00:05:53]} Rc4 {[%clk 00:59:01]} {[%emt 00:02:45]} 19. d5
{[%clk 00:49:06]} {[%emt 00:07:22]} exd5 {[%clk 00:52:05]} {[%emt 00:07:25]} 20.
Rxd5 {[%clk 00:49:00]} {[%emt 00:00:36]} Re8 {[%clk 00:47:57]} {[%emt
00:04:38]} 21. Bf6 {[%clk 00:39:17]} {[%emt 00:10:14]} Ne3 {[%clk 00:40:43]}
{[%emt 00:07:44]} 22. Rc5 {[%clk 00:27:50]} {[%emt 00:11:56]} Rxc5 {[%clk
00:35:58]} {[%emt 00:05:14]} 23. Nxc5 {[%clk 00:26:25]} {[%emt 00:01:56]} Bxf6
{[%clk 00:32:07]} {[%emt 00:04:21]} 24. exf6 {[%clk 00:25:47]} {[%emt
00:01:08]} Nc4+ {[%clk 00:31:13]} {[%emt 00:01:24]} 25. Kf2 {[%clk 00:25:18]}
{[%emt 00:01:00]} b6 {[%clk 00:27:36]} {[%emt 00:04:06]} 26. b3 {[%clk
00:21:13]} {[%emt 00:04:35]} bxc5 {[%clk 00:25:50]} {[%emt 00:02:17]} 27. bxc4
{[%clk 00:21:34]} {[%emt 00:00:09]} Re6 {[%clk 00:25:52]} {[%emt 00:00:28]} 28.
Rb1 {[%clk 00:21:34]} {[%emt 00:00:30]} Rxf6 {[%clk 00:25:53]} {[%emt
00:00:29]} 29. Rb5 {[%clk 00:21:54]} {[%emt 00:00:09]} Rc6 {[%clk 00:24:45]}
{[%emt 00:01:39]} 30. Ra5 {[%clk 00:22:07]} {[%emt 00:00:17]} a6 {[%clk
00:24:35]} {[%emt 00:00:40]} 31. Ke3 {[%clk 00:22:19]} {[%emt 00:00:18]} f5
{[%clk 00:23:20]} {[%emt 00:01:44]} 32. Kf4 {[%clk 00:22:07]} {[%emt 00:00:43]}
Kf7 {[%clk 00:20:08]} {[%emt 00:03:41]} 33. Ke5 {[%clk 00:22:05]} {[%emt
00:00:32]} Ke7 {[%clk 00:17:46]} {[%emt 00:02:52]} 34. Kd5 {[%clk 00:22:19]}
{[%emt 00:00:17]} Rd6+ {[%clk 00:17:17]} {[%emt 00:00:59]} 35. Kxc5 {[%clk
00:22:19]} {[%emt 00:00:29]} Kd7 {[%clk 00:17:12]} {[%emt 00:00:36]} 36. Kb4
{[%clk 00:21:06]} {[%emt 00:01:42]} Rb6+ {[%clk 00:12:58]} {[%emt 00:04:45]} 37.
Kc5 {[%clk 00:16:05]} {[%emt 00:05:31]} Kc7 {[%clk 00:11:19]} {[%emt 00:02:09]}
38. Kd4 {[%clk 00:13:39]} {[%emt 00:02:56]} Kb7 {[%clk 00:08:03]} {[%emt
00:03:45]} 1/2-1/2

[Event "NJSK 2022 Meisjes A&B"]
[Site "Almelo, Netherlands"]
[Date "2022.05.05"]
[Round "5.1"]
[White "Van Essen, Marieke"]
[Black "Cordes, Jule"]
[Result "0-1"]
[TimeControl "90min/40moves + 30min + 30sec/move"]
[WhiteElo "1728"]
[BlackElo "1802"]

1. e4 {[%emt 00:00:17]} c5 {[%clk 01:30:44]} 2. Nf3 {[%clk 01:31:25]} {[%emt
00:00:03]} g6 {[%clk 01:31:05]} {[%emt 00:00:10]} 3. d4 {[%clk 01:31:51]}
{[%emt 00:00:04]} cxd4 {[%clk 01:31:29]} {[%emt 00:00:06]} 4. Nxd4 {[%clk
01:32:17]} {[%emt 00:00:04]} Bg7 {[%clk 01:31:34]} {[%emt 00:00:25]} 5. Nc3
{[%clk 01:32:34]} {[%emt 00:00:12]} Nc6 {[%clk 01:31:47]} {[%emt 00:00:17]} 6.
Be3 {[%clk 01:32:53]} {[%emt 00:00:11]} Nf6 {[%clk 01:31:52]} {[%emt 00:00:25]}
7. Be2 {[%clk 01:32:48]} {[%emt 00:00:35]} O-O {[%clk 01:31:47]} {[%emt
00:00:35]} 8. O-O {[%clk 01:32:52]} {[%emt 00:00:26]} d5 {[%clk 01:31:26]}
{[%emt 00:00:51]} 9. exd5 {[%clk 01:32:18]} {[%emt 00:01:05]} Nxd5 {[%clk
01:27:40]} {[%emt 00:04:15]} 10. Nxd5 {[%clk 01:29:25]} {[%emt 00:03:23]} Qxd5
{[%clk 01:20:14]} {[%emt 00:07:57]} 11. Nxc6 {[%clk 01:25:31]} {[%emt
00:04:24]} Qxc6 {[%clk 01:13:43]} {[%emt 00:07:00]} 12. c3 {[%clk 01:23:13]}
{[%emt 00:02:48]} Be6 {[%clk 01:09:52]} {[%emt 00:04:21]} 13. Qc2 {[%clk
01:19:17]} {[%emt 00:04:26]} a6 {[%clk 01:00:17]} {[%emt 00:10:06]} 14. a4
{[%clk 01:15:06]} {[%emt 00:04:40]} Bd5 {[%clk 00:51:12]} {[%emt 00:09:35]} 15.
f3 {[%clk 01:13:25]} {[%emt 00:02:11]} Qe6 {[%clk 00:50:14]} {[%emt 00:01:29]}
16. Bf2 {[%clk 01:05:56]} {[%emt 00:07:58]} Rfd8 {[%clk 00:46:38]} {[%emt
00:04:07]} 17. c4 {[%clk 00:56:07]} {[%emt 00:10:18]} Rac8 {[%clk 00:39:00]}
{[%emt 00:08:08]} 18. Rac1 {[%clk 00:51:44]} {[%emt 00:04:53]} Bc6 {[%emt
00:16:56]} 19. b4 {[%clk 00:44:03]} Bxa4 {[%clk 00:25:38]} {[%emt 00:05:37]} 20.
Qxa4 {[%clk 00:41:16]} {[%emt 00:03:17]} Qxe2 {[%clk 00:25:51]} {[%emt
00:00:17]} 21. Rfe1 {[%clk 00:39:40]} {[%emt 00:02:06]} Qb2 {[%clk 00:25:08]}
{[%emt 00:01:13]} 22. Rc2 {[%clk 00:36:15]} {[%emt 00:03:55]} Qf6 {[%clk
00:25:01]} {[%emt 00:00:38]} 23. b5 {[%clk 00:34:43]} {[%emt 00:02:02]} Ra8
{[%clk 00:17:08]} {[%emt 00:08:22]} 24. b6 {[%clk 00:30:43]} {[%emt 00:04:31]}
Qf4 {[%clk 00:10:59]} {[%emt 00:06:39]} 25. Rce2 {[%clk 00:19:27]} {[%emt
00:11:46]} e6 {[%clk 00:09:29]} {[%emt 00:01:59]} 26. Re4 {[%clk 00:17:19]}
{[%emt 00:02:37]} Qd2 {[%clk 00:09:37]} {[%emt 00:00:23]} 27. c5 {[%clk
00:15:07]} {[%emt 00:02:42]} Rac8 {[%clk 00:09:37]} {[%emt 00:00:30]} 28. Rc4
{[%clk 00:11:52]} {[%emt 00:03:45]} Rc6 {[%clk 00:09:48]} {[%emt 00:00:21]} 29.
Rcc1 {[%clk 00:11:18]} {[%emt 00:01:03]} Bd4 {[%clk 00:04:54]} {[%emt
00:05:24]} 30. Bxd4 {[%clk 00:10:19]} {[%emt 00:01:28]} Rxd4 {[%clk 00:04:20]}
{[%emt 00:01:05]} 31. Qa1 {[%clk 00:05:25]} {[%emt 00:05:23]} Qb4 {[%clk
00:03:27]} {[%emt 00:01:23]} 32. Rb1 {[%clk 00:03:49]} {[%emt 00:02:06]} Qxc5
{[%clk 00:03:38]} {[%emt 00:00:20]} 33. Rbc1 {[%clk 00:03:23]} {[%emt
00:00:56]} Rc4+ {[%clk 00:03:53]} {[%emt 00:00:14]} 0-1

[Event "NJSK 2022 Meisjes A&B"]
[Site "Almelo, Netherlands"]
[Date "2022.05.05"]
[Round "5.2"]
[White "Den Heijer, Rolinde"]
[Black "Verheij, Dana"]
[Result "0-1"]
[TimeControl "90min/40moves + 30min + 30sec/move"]
[WhiteElo "1754"]
[BlackElo "1828"]

1. e4 {[%clk 01:30:58]} {[%emt 00:00:02]} c5 {[%clk 01:30:57]} {[%emt
00:00:05]} 2. Nf3 {[%clk 01:31:23]} {[%emt 00:00:03]} d6 {[%clk 01:31:24]}
{[%emt 00:00:04]} 3. d4 {[%clk 01:31:48]} {[%emt 00:00:04]} cxd4 {[%clk
01:31:49]} {[%emt 00:00:05]} 4. Nxd4 {[%clk 01:32:13]} {[%emt 00:00:05]} Nf6
{[%clk 01:32:13]} {[%emt 00:00:06]} 5. Nc3 {[%clk 01:32:38]} {[%emt 00:00:05]}
a6 {[%clk 01:32:40]} {[%emt 00:00:04]} 6. Nb3 {[%clk 01:32:59]} {[%emt
00:00:09]} e5 {[%clk 01:30:21]} {[%emt 00:02:48]} 7. Bg5 {[%clk 01:32:41]}
{[%emt 00:00:48]} Be7 {[%clk 01:30:32]} {[%emt 00:00:19]} 8. Bxf6 {[%clk
01:32:51]} {[%emt 00:00:19]} Bxf6 {[%clk 01:30:57]} {[%emt 00:00:06]} 9. Qd3
{[%clk 01:32:58]} {[%emt 00:00:23]} Be6 {[%clk 01:28:54]} {[%emt 00:02:33]} 10.
O-O-O {[%clk 01:33:02]} {[%emt 00:00:26]} Be7 {[%clk 01:28:12]} {[%emt
00:01:13]} 11. g3 {[%clk 01:32:31]} {[%emt 00:01:01]} O-O {[%clk 01:28:17]}
{[%emt 00:00:24]} 12. f4 {[%clk 01:32:14]} {[%emt 00:00:48]} Nc6 {[%clk
01:22:00]} {[%emt 00:06:47]} 13. f5 {[%clk 01:30:02]} {[%emt 00:02:42]} Nb4
{[%emt 00:04:39]} 14. Qf3 {[%emt 00:01:55]} Bxb3 {[%clk 01:18:00]} {[%emt
00:00:22]} 15. cxb3 {[%clk 01:28:13]} {[%emt 00:00:53]} Rc8 {[%clk 01:12:52]}
{[%emt 00:05:37]} 16. Kb1 {[%clk 01:26:44]} {[%emt 00:01:58]} Qa5 {[%clk
01:11:45]} {[%emt 00:01:38]} 17. Bc4 {[%clk 01:20:07]} {[%emt 00:07:07]} b5
{[%clk 01:08:55]} {[%emt 00:03:20]} 18. Bd5 {[%clk 01:19:02]} {[%emt 00:01:36]}
Rxc3 {[%clk 01:06:59]} {[%emt 00:02:26]} 19. Bxf7+ {[%clk 01:12:57]} {[%emt
00:06:35]} Rxf7 {[%clk 01:05:41]} {[%emt 00:01:48]} 20. Qxc3 {[%clk 01:13:05]}
{[%emt 00:00:22]} Qxa2+ {[%clk 01:06:05]} {[%emt 00:00:06]} 21. Kc1 {[%clk
01:13:29]} {[%emt 00:00:05]} Bg5+ {[%clk 01:06:28]} {[%emt 00:00:07]} 22. Qd2
{[%clk 01:13:48]} {[%emt 00:00:12]} Qa1# {[%clk 01:06:15]} {[%emt 00:00:11]}
0-1